bitfinex/quotes_BTCUSD_20241025
["timestamp","ask_amount","ask_price","bid_price","bid_amount"]
[1729845141505,0.017653,67626.0,67625.0,0.00462338]
[1729845141840,0.018476,67626.0,67625.0,0.00462338]
[1729845141982,0.018476,67626.0,67625.0,0.0120207]
[1729845142374,0.018476,67626.0,67625.0,0.15249738]
[1729845142612,0.018476,67626.0,67625.0,0.01202069]
[1729845143230,0.018476,67626.0,67625.0,0.15989469]
[1729845143482,0.018476,67626.0,67625.0,0.01202069]
[1729845143878,0.02586867,67626.0,67625.0,0.01202069]
[1729845144295,0.02586867,67626.0,67625.0,0.15989469]
[1729845144822,0.02586867,67626.0,67625.0,0.15989434]
[1729845145778,0.02586867,67626.0,67625.0,0.01202034]
[1729845146279,0.018476,67626.0,67625.0,0.15989434]
[1729845146672,0.02597948,67626.0,67625.0,0.15989434]
[1729845146833,0.018476,67626.0,67625.0,0.31039815]
[1729845147013,0.02597948,67626.0,67625.0,0.31039815]
[1729845147214,0.018476,67626.0,67625.0,0.31039815]
[1729845148610,0.018476,67626.0,67625.0,0.31039795]
[1729845152280,0.018476,67626.0,67625.0,0.3103978]
[1729845153320,0.018476,67626.0,67625.0,0.56131181]
[1729845153521,0.000838,67635.0,67634.0,0.147854]
[1729845153726,0.000838,67635.0,67634.0,0.3103778]
[1729845154347,0.000838,67635.0,67634.0,0.1625238]
[1729845155247,0.000838,67635.0,67634.0,0.2568238]
[1729845155446,0.000838,67635.0,67634.0,0.1625238]
[1729845155858,0.000838,67635.0,67630.0,0.005]
[1729845156068,0.000838,67635.0,67634.0,0.0046223]
[1729845156359,0.000838,67635.0,67634.0,0.01201799]
[1729845157964,0.295669,67644.0,67640.0,0.005172]
[1729845158165,0.147837,67642.0,67641.0,0.0046223]
[1729845158787,0.0073915,67642.0,67641.0,0.0046223]
[1729845159006,0.147835,67643.0,67641.0,0.0046223]
[1729845159197,0.00740906,67642.0,67640.0,0.005172]
[1729845159527,0.147835,67643.0,67641.0,0.0046223]
[1729845159731,0.295661,67645.0,67642.0,0.0046223]
[1729845159732,0.147831,67645.0,67642.0,0.0046223]
[1729845159936,0.147832,67644.0,67640.0,0.005172]
[1729845160127,0.005,67646.0,67641.0,0.0046223]
[1729845160359,0.005,67646.0,67640.0,0.005172]
[1729845160360,0.295656,67646.0,67642.0,0.0046223]
[1729845160526,0.295656,67646.0,67640.0,0.005172]
[1729845160703,0.147834,67644.0,67641.0,0.00462228]
[1729845160911,0.147834,67644.0,67642.0,0.00462228]
[1729845161174,0.147834,67644.0,67643.0,0.00462228]
[1729845162577,0.147832,67644.0,67643.0,0.00462228]
[1729845162806,0.295661,67646.0,67643.0,0.00462228]
[1729845162992,0.147832,67644.0,67640.0,0.005172]
[1729845163142,0.147832,67644.0,67641.0,0.00462228]
[1729845163353,0.147832,67644.0,67642.0,0.00462228]
[1729845163354,0.147834,67644.0,67642.0,0.00462228]
[1729845163635,0.147832,67644.0,67643.0,0.00462228]
[1729845165720,0.225532,67644.0,67643.0,0.00462228]
[1729845166702,0.214532,67644.0,67643.0,0.00462228]
[1729845167086,0.147839,67641.0,67640.0,0.005172]
[1729845167292,0.147839,67641.0,67640.0,0.00979455]
[1729845167942,0.295661,67645.0,67640.0,0.00979455]
[1729845168134,0.147839,67641.0,67640.0,0.005172]
[1729845168366,0.147839,67641.0,67640.0,0.01719017]
[1729845172334,0.147837,67642.0,67640.0,0.01719017]
[1729845172537,0.295669,67643.0,67641.0,0.01201817]
[1729845172926,0.443503,67643.0,67642.0,0.01201813]
[1729845173760,0.0843,67649.0,67642.0,0.01201813]
[1729845173944,0.00747663,67643.0,67640.0,0.005172]
[1729845174211,0.00747663,67643.0,67641.0,0.01201813]
[1729845174410,0.147831,67645.0,67642.0,0.01201813]
[1729845174649,0.295652,67647.0,67642.0,0.01201813]
[1729845174881,0.14783,67646.0,67643.0,0.01201813]
[1729845175099,0.147831,67645.0,67644.0,0.00462236]
[1729845176456,0.147831,67645.0,67644.0,0.01201813]
[1729845176863,0.0843,67649.0,67644.0,0.01201813]
[1729845177064,0.0843,67649.0,67640.0,0.005172]
[1729845177065,0.0843,67649.0,67645.0,0.00462236]
[1729845177277,0.0843,67649.0,67646.0,0.00462236]
[1729845177472,0.0793,67649.0,67647.0,0.00462236]
[1729845177676,0.232123,67649.0,67647.0,0.00462236]
[1729845178162,0.0843,67649.0,67647.0,0.00462236]
[1729845178580,0.005,67649.0,67647.0,0.00462236]
[1729845178784,0.01,67650.0,67647.0,0.00462236]
[1729845178986,0.005,67649.0,67647.0,0.00462236]
[1729845179870,0.152823,67649.0,67647.0,0.00462236]
[1729845180075,0.005,67649.0,67647.0,0.00462236]
[1729845180279,0.01,67649.0,67647.0,0.00462236]
[1729845180476,0.42700973,67648.0,67647.0,0.00462236]
[1729845180746,0.42617173,67648.0,67647.0,0.00462236]
[1729845180971,0.322024,67648.0,67647.0,0.00462236]
[1729845182047,0.322024,67648.0,67647.0,0.00462234]
[1729845183497,0.322024,67648.0,67647.0,0.01201809]
[1729845183711,0.01,67649.0,67647.0,0.01201809]
[1729845183923,0.01,67649.0,67641.0,0.001648]
[1729845183924,0.147824,67648.0,67641.0,0.001648]
[1729845184136,0.147824,67648.0,67642.0,0.01201809]
[1729845184350,0.147824,67648.0,67643.0,0.23241996]
[1729845184555,0.0888,67649.0,67644.0,0.01201809]
[1729845184756,0.236622,67649.0,67645.0,0.01201809]
[1729845184976,0.236622,67649.0,67646.0,0.01201809]
[1729845185155,0.236622,67649.0,67641.0,0.001648]
[1729845185156,0.147822,67649.0,67647.0,0.01201809]
[1729845185384,0.15782,67650.0,67648.0,0.01201809]
[1729845185598,0.005,67650.0,67641.0,0.149485]
[1729845185809,0.005,67650.0,67649.0,0.0120178]
[1729845186023,0.005,67648.0,67643.0,0.36823487]
[1729845186243,0.005,67650.0,67643.0,0.36823587]
[1729845186453,0.005,67651.0,67644.0,0.00462223]
[1729845186650,0.005,67651.0,67646.0,0.147828]
[1729845186860,0.005,67651.0,67647.0,0.00462223]
[1729845187107,0.005,67651.0,67648.0,0.00462223]
[1729845187345,0.005,67651.0,67649.0,0.00462223]
[1729845187574,0.005,67651.0,67650.0,0.00462223]
[1729845187800,0.157817,67651.0,67650.0,0.00462223]
[1729845187999,0.05620241,67651.0,67650.0,0.00462223]
[1729845188268,0.05120241,67651.0,67650.0,0.00462223]
[1729845188533,0.04620241,67651.0,67650.0,0.00462223]
[1729845188754,0.005,67652.0,67650.0,0.00462223]
[1729845188964,0.005,67652.0,67647.0,0.147824]
[1729845188965,0.00746652,67651.0,67647.0,0.147824]
[1729845189168,0.00746652,67651.0,67645.0,0.0908]
[1729845189382,0.00746652,67651.0,67648.0,0.00462214]
[1729845189610,0.00746652,67651.0,67646.0,0.00462214]
[1729845189817,0.00746652,67651.0,67647.0,0.15244714]
[1729845190019,0.00746652,67651.0,67648.0,0.00462214]
[1729845190220,0.00746652,67651.0,67647.0,0.147825]
[1729845190221,0.00746652,67651.0,67649.0,0.00462214]
[1729845190395,0.00746652,67651.0,67650.0,0.00462214]
[1729845191069,0.0074769,67651.0,67650.0,0.00462214]
[1729845191272,0.10414773,67656.0,67650.0,0.01386553]
[1729845191482,0.0074769,67651.0,67647.0,0.297297]
[1729845191687,0.147809,67655.0,67649.0,0.14782]
[1729845191887,0.00748124,67650.0,67649.0,0.14782]
[1729845192094,0.147809,67655.0,67650.0,0.147818]
[1729845192300,0.10414773,67656.0,67651.0,0.15243764]
[1729845192511,0.10414773,67656.0,67647.0,0.297297]
[1729845192512,0.10414773,67656.0,67652.0,0.00462164]
[1729845192716,0.147809,67655.0,67653.0,0.00462164]
[1729845192930,0.10414773,67656.0,67647.0,0.297297]
[1729845193142,0.147808,67655.0,67654.0,0.00462163]
[1729845193354,0.147821,67649.0,67648.0,0.00462163]
[1729845193565,0.295626,67654.0,67649.0,0.22040187]
[1729845193778,0.295626,67654.0,67650.0,0.00462172]
[1729845193779,0.147818,67651.0,67650.0,0.00462172]
[1729845194611,0.147815,67652.0,67650.0,0.00462172]
[1729845194821,0.147815,67652.0,67651.0,0.00462172]
[1729845195042,0.25196273,67652.0,67651.0,0.00462172]
[1729845195254,0.75738501,67652.0,67651.0,0.00462172]
[1729845195460,0.71111427,67652.0,67651.0,0.00462172]
[1729845195744,0.82567968,67652.0,67651.0,0.00462172]
[1729845195968,0.82567968,67652.0,67647.0,0.001648]
[1729845195969,0.180824,67648.0,67647.0,0.001648]
[1729845196193,0.180824,67648.0,67647.0,0.00627027]
[1729845196194,0.26197173,67648.0,67647.0,0.00627027]
[1729845196408,0.45971681,67648.0,67647.0,0.001648]
[1729845196621,0.45914027,67648.0,67647.0,0.001648]
[1729845197705,0.54773387,67648.0,67647.0,0.001648]
[1729845198613,0.26197173,67648.0,67647.0,0.001648]
[1729845198831,0.30628865,67648.0,67647.0,0.00627047]
[1729845199266,0.05431643,67648.0,67647.0,0.00627047]
[1729845199503,0.01,67648.0,67647.0,0.00627047]
[1729845199972,0.147824,67648.0,67647.0,0.00627047]
[1729845200202,0.20214043,67648.0,67647.0,0.00627047]
[1729845200425,0.157824,67648.0,67647.0,0.00627047]
[1729845201304,0.147824,67648.0,67647.0,0.00627047]
[1729845201537,0.157824,67648.0,67647.0,0.00627047]
[1729845202432,0.158648,67648.0,67647.0,0.00627047]
[1729845203286,0.000824,67648.0,67647.0,0.15409647]
[1729845203955,0.000824,67648.0,67647.0,0.15409585]
[1729845204878,0.10414773,67656.0,67652.0,0.147813]
[1729845205099,0.147809,67655.0,67653.0,0.00462185]
[1729845205301,0.147809,67655.0,67654.0,0.00462185]
[1729845206425,0.10414773,67656.0,67654.0,0.00462185]
[1729845206655,0.10414773,67656.0,67655.0,0.00462185]
[1729845206876,0.25195373,67656.0,67655.0,0.00462185]
[1729845207567,0.10914773,67656.0,67655.0,0.00462185]
[1729845207998,0.10414773,67656.0,67655.0,0.00462185]
[1729845208628,0.005,67657.0,67655.0,0.00462185]
[1729845208836,0.10414773,67656.0,67652.0,0.147814]
[1729845209044,0.10414773,67656.0,67653.0,0.00462155]
[1729845209253,0.10414773,67656.0,67654.0,0.00462155]
[1729845209670,0.25195373,67656.0,67655.0,0.00462155]
[1729845209880,0.10414773,67656.0,67655.0,0.00462155]
[1729845210510,0.25195373,67656.0,67655.0,0.00462155]
[1729845210722,0.25195373,67656.0,67655.0,0.00462149]
[1729845210938,0.10414773,67656.0,67655.0,0.00462149]
[1729845211983,0.25195373,67656.0,67655.0,0.00462149]
[1729845212860,0.10414773,67656.0,67655.0,0.00462149]
[1729845214380,0.005,67660.0,67656.0,0.147805]
[1729845214598,0.000838,67665.0,67655.0,0.00462118]
[1729845214809,0.147797,67661.0,67657.0,0.00462118]
[1729845215023,0.25194473,67661.0,67658.0,0.00462118]
[1729845215284,0.10414773,67661.0,67658.0,0.00462118]
[1729845215492,0.10414773,67661.0,67659.0,0.00462118]
[1729845215704,0.10414773,67661.0,67654.0,0.14781]
[1729845215920,0.25194473,67661.0,67655.0,0.15242922]
[1729845216174,0.25194473,67661.0,67656.0,0.00462122]
[1729845216394,0.25194473,67661.0,67657.0,0.00462122]
[1729845216627,0.25194473,67661.0,67658.0,0.00462122]
[1729845216854,0.147798,67660.0,67659.0,0.00462122]
[1729845218008,0.147797,67660.0,67659.0,0.00462122]
[1729845218904,0.00832469,67660.0,67659.0,0.00462122]
[1729845219689,0.00832469,67660.0,67659.0,0.15242022]
[1729845219919,0.13876038,67671.0,67659.0,0.15242022]
[1729845219920,0.005,67667.0,67659.0,0.00462122]
[1729845220198,1.18648638,67674.0,67660.0,0.00462122]
[1729845220199,0.10414773,67661.0,67660.0,0.00462122]
[1729845220665,0.10414773,67664.0,67660.0,0.00462122]
[1729845220886,0.00857317,67661.0,67655.0,0.22040187]
[1729845221091,0.147791,67663.0,67656.0,0.00462115]
[1729845221328,0.00857314,67660.0,67659.0,0.147798]
[1729845221539,0.10414773,67664.0,67659.0,0.00462115]
[1729845221765,0.10414773,67664.0,67659.0,0.15242015]
[1729845221989,0.10414773,67664.0,67660.0,0.00462115]
[1729845222216,0.00857324,67663.0,67661.0,0.00462115]
[1729845222455,0.00857324,67663.0,67662.0,0.00462115]
[1729845224969,0.00857324,67663.0,67662.0,0.147793]
[1729845225267,0.00857324,67663.0,67662.0,0.00462106]
[1729845226383,0.00857324,67663.0,67662.0,0.15241406]
[1729845226899,0.000838,67665.0,67663.0,0.14779]
[1729845227121,0.000838,67665.0,67664.0,0.00462106]
[1729845227344,0.000838,67665.0,67664.0,0.15241006]
[1729845227572,0.000838,67665.0,67664.0,0.00462106]
[1729845227817,0.000838,67665.0,67664.0,0.15241006]
[1729845228046,0.000838,67665.0,67664.0,0.00462106]
[1729845228266,0.000838,67665.0,67664.0,0.15241006]
[1729845228488,0.000838,67665.0,67664.0,0.00462106]
[1729845230286,0.00110832,67665.0,67664.0,0.00462106]
[1729845231422,0.000838,67665.0,67664.0,0.00462106]
[1729845231929,0.00110832,67665.0,67664.0,0.15241006]
[1729845232144,0.00110832,67665.0,67662.0,0.147792]
[1729845232348,0.10414773,67664.0,67663.0,0.00462076]
[1729845232577,0.11272528,67664.0,67663.0,0.00462076]
[1729845232792,0.11272528,67664.0,67663.0,0.15241176]
[1729845233000,0.00857755,67664.0,67663.0,0.15241176]
[1729845233424,0.000838,67665.0,67664.0,0.147789]
[1729845233629,0.000838,67665.0,67664.0,0.15240976]
[1729845235575,0.10414773,67668.0,67664.0,0.15240976]
[1729845235702,0.10414773,67668.0,67665.0,0.00462076]
[1729845235904,0.10414773,67668.0,67666.0,0.00462076]
[1729845236100,0.10414773,67668.0,67661.0,0.295588]
[1729845236101,0.147776,67670.0,67667.0,0.00462076]
[1729845236332,0.10414773,67669.0,67668.0,0.00462076]
[1729845237367,0.25192573,67669.0,67668.0,0.00462076]
[1729845238638,0.35607346,67669.0,67668.0,0.00462076]
[1729845238851,0.70677727,67669.0,67668.0,0.00462076]
[1729845239068,0.009838,67668.0,67655.0,0.22040187]
[1729845239296,0.009838,67668.0,67663.0,0.22040187]
[1729845239297,0.147789,67664.0,67663.0,0.22040187]
[1729845239534,0.005,67665.0,67655.0,0.22040187]
[1729845239754,0.147793,67662.0,67661.0,0.001648]
[1729845240045,0.35608846,67662.0,67661.0,0.00626932]
[1729845240214,0.36469143,67662.0,67661.0,0.00626932]
[1729845242829,0.36469143,67662.0,67661.0,0.001648]
[1729845243070,0.36469143,67662.0,67661.0,0.00626936]
[1729845243565,0.00860297,67662.0,67661.0,0.00626936]
[1729845245454,0.15639597,67662.0,67661.0,0.00626936]
[1729845246312,0.15639597,67662.0,67661.0,0.01366325]
[1729845247787,0.2605437,67662.0,67661.0,0.01366325]
[1729845249254,0.2605437,67662.0,67661.0,0.00626936]
[1729845249671,0.2605437,67662.0,67661.0,0.001648]
[1729845251450,0.47892463,67662.0,67661.0,0.001648]
[1729845251864,0.4346437,67662.0,67661.0,0.001648]
[1729845252077,0.51090309,67662.0,67661.0,0.001648]
[1729845254354,0.89523023,67662.0,67661.0,0.001648]
[1729845254559,1.0108161,67662.0,67661.0,0.001648]
[1729845254772,0.90466837,67662.0,67661.0,0.001648]
[1729845255194,0.80052064,67662.0,67661.0,0.001648]
[1729845255592,0.99286761,67662.0,67661.0,0.001648]
[1729845256597,0.97241773,67662.0,67661.0,0.001648]
[1729845256812,0.87027,67662.0,67661.0,0.001648]
[1729845256947,0.86827,67662.0,67661.0,0.001648]
[1729845257155,0.87027,67662.0,67661.0,0.001648]
[1729845257986,0.86827,67662.0,67661.0,0.001648]
[1729845258395,0.002,67653.0,67648.0,0.001648]
[1729845258600,0.43341646,67649.0,67648.0,0.001648]
[1729845258809,0.43362259,67649.0,67648.0,0.001648]
[1729845259011,0.44192833,67649.0,67648.0,0.001648]
[1729845261548,0.59243214,67649.0,67648.0,0.001648]
[1729845261711,0.61543214,67649.0,67648.0,0.001648]
[1729845261916,0.88192168,67649.0,67648.0,0.001648]
[1729845262120,0.77568131,67649.0,67648.0,0.001648]
[1729845262319,0.72587627,67649.0,67648.0,0.001648]
[1729845262678,0.77013971,67649.0,67648.0,0.001648]
[1729845263222,0.72587627,67649.0,67648.0,0.001648]
[1729845264014,0.92247217,67649.0,67648.0,0.001648]
[1729845264439,0.81832444,67649.0,67648.0,0.001648]
[1729845264655,0.92047217,67649.0,67648.0,0.001648]
[1729845264888,0.81632444,67649.0,67648.0,0.001648]
[1729845265151,0.92047217,67649.0,67648.0,0.001648]
[1729845265413,0.91632444,67649.0,67648.0,0.001648]
[1729845266251,1.02047217,67649.0,67648.0,0.001648]
[1729845266472,0.91632444,67649.0,67648.0,0.001648]
[1729845266710,0.91832444,67649.0,67648.0,0.001648]
[1729845267343,0.82387627,67649.0,67648.0,0.001648]
[1729845267552,0.82587627,67649.0,67648.0,0.001648]
[1729845270610,0.82387627,67649.0,67648.0,0.001648]
[1729845271641,0.82587627,67649.0,67648.0,0.001648]
[1729845272468,0.83179027,67649.0,67648.0,0.001648]
[1729845272664,0.98029408,67649.0,67648.0,0.001648]
[1729845273340,0.98029408,67649.0,67648.0,0.001418]
[1729845273754,0.83179027,67649.0,67648.0,0.001418]
[1729845279012,0.61758081,67649.0,67648.0,0.001418]
[1729845279219,0.72747627,67649.0,67648.0,0.001418]
[1729845284356,0.72547627,67649.0,67648.0,0.001418]
[1729845285437,0.77157578,67649.0,67648.0,0.001418]
[1729845285627,1.183306,67649.0,67648.0,0.001418]
[1729845285885,1.11702732,67649.0,67648.0,0.001418]
[1729845286317,1.1612168,67649.0,67648.0,0.001418]
[1729845286566,0.011838,67642.0,67641.0,0.001648]
[1729845286786,0.53947427,67642.0,67641.0,0.001648]
[1729845286994,0.54793325,67642.0,67641.0,0.001648]
[1729845289826,0.69142538,67642.0,67641.0,0.001648]
[1729845290077,0.90997879,67642.0,67641.0,0.001648]
[1729845290323,0.90997879,67642.0,67623.0,0.22040187]
[1729845290324,0.147876,67624.0,67623.0,0.22040187]
[1729845290529,0.25202373,67624.0,67623.0,0.22502537]
[1729845290730,0.25211746,67624.0,67623.0,0.23242297]
[1729845290949,0.25211746,67624.0,67623.0,0.0120211]
[1729845291566,0.25211746,67624.0,67623.0,0.0046235]
[1729845293702,0.25211746,67624.0,67622.0,0.1718]
[1729845293909,0.26044917,67624.0,67623.0,0.00462362]
[1729845297459,0.26044917,67624.0,67623.0,0.00462363]
[1729845298696,0.26044917,67624.0,67623.0,0.00627163]
[1729845300256,0.11257317,67624.0,67623.0,0.00627163]
[1729845301170,0.11257317,67624.0,67623.0,0.001648]
[1729845301347,0.11257317,67624.0,67623.0,0.00627151]
[1729845303993,0.26044917,67624.0,67623.0,0.00627151]
[1729845304221,0.3645969,67624.0,67623.0,0.00627151]
[1729845304384,0.3645969,67624.0,67623.0,0.001648]
[1729845305341,0.53810071,67624.0,67623.0,0.001648]
[1729845306109,0.15630144,67624.0,67623.0,0.001648]
[1729845306306,0.26044917,67624.0,67623.0,0.001648]
[1729845307006,1.26044917,67624.0,67623.0,0.001648]
[1729845312709,1.26044917,67624.0,67623.0,0.005608]
[1729845313531,1.15630144,67624.0,67623.0,0.005608]
[1729845313743,1.00842544,67624.0,67623.0,0.328386]
[1729845313956,1.00842544,67624.0,67623.0,0.33300955]
[1729845314373,1.0,67624.0,67623.0,0.33300955]
[1729845314554,1.00833247,67624.0,67623.0,0.33300955]
[1729845315443,1.00833247,67624.0,67623.0,0.3331714]
[1729845316273,1.00833247,67624.0,67623.0,0.34056883]
[1729845317161,1.2603562,67624.0,67623.0,0.11312883]
[1729845317377,1.15620847,67624.0,67623.0,0.0102314]
[1729845317586,1.2603562,67624.0,67623.0,0.0102314]
[1729845318766,1.2553562,67624.0,67623.0,0.0102314]
[1729845319767,1.2553562,67624.0,67623.0,0.00984594]
[1729845322511,1.2553562,67624.0,67623.0,0.00522254]
[1729845322716,1.2553562,67624.0,67623.0,0.00984604]
[1729845325294,1.1074802,67624.0,67623.0,0.00984604]
[1729845325541,1.1074802,67624.0,67623.0,0.34018352]
[1729845325542,1.00333247,67624.0,67623.0,0.34018352]
[1729845328051,1.00333247,67624.0,67623.0,0.49568733]
[1729845328453,0.995,67624.0,67623.0,0.49568733]
[1729845328810,1.00336396,67624.0,67623.0,0.49568733]
[1729845331304,1.00336396,67624.0,67623.0,0.59983506]
[1729845331520,0.97007882,67624.0,67623.0,0.49568733]
[1729845333132,0.97007882,67624.0,67623.0,0.58781408]
[1729845333396,0.97007882,67624.0,67623.0,0.59983362]
[1729845333807,0.97007882,67624.0,67623.0,0.70483362]
[1729845334249,0.97007882,67624.0,67623.0,0.69281408]
[1729845334460,0.97007882,67624.0,67623.0,0.60068516]
[1729845334874,0.96171486,67624.0,67623.0,0.60068516]
[1729845335310,0.97009618,67624.0,67623.0,0.60068516]
[1729845336382,0.97009618,67624.0,67623.0,0.34018135]
[1729845336582,0.96171486,67624.0,67623.0,0.34018135]
[1729845336794,0.97009618,67624.0,67623.0,0.34018135]
[1729845340361,0.97009618,67624.0,67623.0,0.3355591]
[1729845340611,0.97009618,67624.0,67623.0,0.34018195]
[1729845341531,0.97009618,67624.0,67623.0,0.49568576]
[1729845341746,0.97009618,67624.0,67623.0,0.53883665]
[1729845341957,0.97009618,67624.0,67623.0,0.50493146]
[1729845342164,0.96171486,67624.0,67623.0,0.50493146]
[1729845342370,0.97009618,67624.0,67623.0,0.50493146]
[1729845343000,0.97009618,67624.0,67623.0,0.50493143]
[1729845343623,0.97009618,67624.0,67623.0,0.50642346]
[1729845343823,0.97009618,67624.0,67623.0,0.50493143]
[1729845344689,0.97009618,67624.0,67623.0,0.60993143]
[1729845345180,0.96171486,67624.0,67623.0,0.60993143]
[1729845345398,0.9700982,67624.0,67623.0,0.60993143]
[1729845346676,0.93764075,67624.0,67623.0,0.60993143]
[1729845347496,0.93764075,67624.0,67623.0,0.60992948]
[1729845347914,0.92925741,67624.0,67623.0,0.60992948]
[1729845348331,0.93764075,67624.0,67623.0,0.60992948]
[1729845349950,0.93764075,67624.0,67623.0,0.61142238]
[1729845350154,0.92925741,67624.0,67623.0,0.60992948]
[1729845350390,0.93764075,67624.0,67623.0,0.60992948]
[1729845350795,0.93764075,67624.0,67623.0,0.61142247]
[1729845352152,0.93764075,67624.0,67623.0,0.52692247]
[1729845352362,0.93764075,67624.0,67623.0,0.52542948]
[1729845352564,0.93764075,67624.0,67623.0,0.53042948]
[1729845353857,0.92925741,67624.0,67623.0,0.53042948]
[1729845354230,0.93765873,67624.0,67623.0,0.53042948]
[1729845354435,0.93765873,67624.0,67623.0,0.52542948]
[1729845354800,0.93765873,67624.0,67623.0,0.53042948]
[1729845356014,0.93765873,67624.0,67623.0,0.52542948]
[1729845356215,0.93765873,67624.0,67623.0,0.53042948]
[1729845356435,0.93765873,67624.0,67623.0,0.43502948]
[1729845356640,0.93765873,67624.0,67623.0,0.43652247]
[1729845356879,0.93765873,67624.0,67623.0,0.42578464]
[1729845357054,0.93765873,67624.0,67623.0,0.42727763]
[1729845357696,0.92925741,67624.0,67623.0,0.42727763]
[1729845357891,0.92925741,67624.0,67623.0,0.42578516]
[1729845358106,0.93764808,67624.0,67623.0,0.42578516]
[1729845358263,0.93764808,67624.0,67623.0,0.42727937]
[1729845360345,0.93764808,67624.0,67623.0,0.42227937]
[1729845360545,0.93764808,67624.0,67623.0,0.42727937]
[1729845361988,0.93764808,67624.0,67623.0,0.42227937]
[1729845362201,0.93764808,67624.0,67623.0,0.27177556]
[1729845362413,0.93764808,67624.0,67623.0,0.27028135]
[1729845362631,0.92925741,67624.0,67623.0,0.27028135]
[1729845362830,0.93764808,67624.0,67623.0,0.27028135]
[1729845363035,0.93764808,67624.0,67623.0,0.16511935]
[1729845363614,0.92925741,67624.0,67623.0,0.16511935]
[1729845364040,0.9376359,67624.0,67623.0,0.16511935]
[1729845367758,0.9376359,67624.0,67623.0,0.26621935]
[1729845367973,0.9376359,67624.0,67623.0,0.49567937]
[1729845368184,0.92936015,67624.0,67623.0,0.48216635]
[1729845368608,0.92936015,67624.0,67623.0,0.52616714]
[1729845368813,0.92936015,67624.0,67623.0,0.71054976]
[1729845369040,0.92936015,67624.0,67623.0,0.64454857]
[1729845369240,0.92936015,67624.0,67623.0,0.73717269]
[1729845369353,0.92936015,67624.0,67623.0,0.6491711]
[1729845369551,0.92936015,67624.0,67623.0,0.7491711]
[1729845370668,0.92936015,67624.0,67623.0,0.85917727]
[1729845370879,0.88313797,67624.0,67623.0,0.85455474]
[1729845371090,0.88313797,67624.0,67623.0,0.83255739]
[1729845371300,0.8915065,67624.0,67623.0,0.83255739]
[1729845373438,0.8915065,67624.0,67623.0,0.74956826]
[1729845374093,0.8915065,67624.0,67623.0,0.7708303]
[1729845374717,0.8915065,67624.0,67623.0,0.87497803]
[1729845375781,0.8915065,67624.0,67623.0,1.07411786]
[1729845375995,0.8915065,67624.0,67623.0,4.06268551]
[1729845376201,0.8915065,67624.0,67623.0,3.63803951]
[1729845376407,0.88313797,67624.0,67623.0,3.63803951]
[1729845376808,0.89150648,67624.0,67623.0,3.63803951]
[1729845376984,0.89150648,67624.0,67623.0,2.80216151]
[1729845377546,0.89150648,67624.0,67623.0,2.71605851]
[1729845377944,0.89150648,67624.0,67623.0,2.71805851]
[1729845378356,0.89150648,67624.0,67623.0,2.61825514]
[1729845378559,0.89150648,67624.0,67623.0,1.14059641]
[1729845378763,0.89150648,67624.0,67623.0,0.98688066]
[1729845379397,0.89150648,67624.0,67623.0,0.98688063]
[1729845379801,0.89150648,67624.0,67623.0,1.29665409]
[1729845380047,0.89150648,67624.0,67623.0,1.01188063]
[1729845380217,0.89150648,67624.0,67623.0,1.24601213]
[1729845380371,0.89150648,67624.0,67623.0,1.00988063]
[1729845380982,0.80278148,67624.0,67623.0,1.11402836]
[1729845381190,0.74363148,67624.0,67623.0,1.11602836]
[1729845381418,0.74363148,67624.0,67623.0,1.15717925]
[1729845382214,0.57912025,67624.0,67623.0,1.15717925]
[1729845382416,0.54954525,67624.0,67623.0,1.15717925]
[1729845382868,0.54954525,67624.0,67623.0,1.11402836]
[1729845383084,0.54954525,67624.0,67623.0,1.15717925]
[1729845383227,0.54954525,67624.0,67623.0,1.11402836]
[1729845384066,0.45245174,67624.0,67623.0,1.15917925]
[1729845384307,0.45245174,67624.0,67623.0,1.15683241]
[1729845384706,0.45245174,67624.0,67623.0,4.93390477]
[1729845384907,0.4608434,67624.0,67623.0,4.93390477]
[1729845385112,0.45245174,67624.0,67623.0,4.89075388]
[1729845385312,0.25560417,67624.0,67623.0,1.00253452]
[1729845385514,0.25560417,67624.0,67623.0,4.89075388]
[1729845385763,0.19645417,67624.0,67623.0,1.00253452]
[1729845385971,0.19645417,67624.0,67623.0,4.89075388]
[1729845386350,0.19645417,67624.0,67623.0,4.87873624]
[1729845386547,0.19645417,67624.0,67623.0,4.89075095]
[1729845386751,0.19645417,67624.0,67623.0,4.93590184]
[1729845386949,0.19645417,67624.0,67623.0,4.93390184]
[1729845387157,0.19645417,67624.0,67623.0,4.89275095]
[1729845387504,0.19645417,67624.0,67623.0,1.00253159]
[1729845387706,0.19645417,67624.0,67623.0,4.89075095]
[1729845387853,0.19645417,67624.0,67623.0,1.00453159]
[1729845388053,0.19645417,67624.0,67623.0,4.89075095]
[1729845388471,0.19645417,67624.0,67623.0,1.00253158]
[1729845388663,0.19645417,67624.0,67623.0,4.89075094]
[1729845388786,0.19645417,67624.0,67623.0,1.00240896]
[1729845388989,0.19645417,67624.0,67623.0,4.89062832]
[1729845389216,0.19645417,67624.0,67623.0,1.00240896]
[1729845389432,0.19645417,67624.0,67623.0,4.89062832]
[1729845389657,0.19645417,67624.0,67623.0,1.04555985]
[1729845389858,0.19645417,67624.0,67623.0,4.93377921]
[1729845390068,0.19645417,67624.0,67623.0,1.04555983]
[1729845390269,0.19645417,67624.0,67623.0,4.93377919]
[1729845391375,0.14615938,67624.0,67623.0,4.8906283]
[1729845391538,0.14615938,67624.0,67623.0,1.04755983]
[1729845391910,0.13588254,67624.0,67623.0,4.93377919]
[1729845392071,0.10630754,67624.0,67623.0,4.93377919]
[1729845392289,0.10630754,67624.0,67623.0,4.93577919]
[1729845392839,0.10630754,67624.0,67623.0,4.93377919]
[1729845393598,0.10630754,67624.0,67623.0,4.93362913]
[1729845395167,0.10630754,67624.0,67623.0,4.93562913]
[1729845395367,0.10630754,67624.0,67623.0,4.93362913]
[1729845395608,5.4e-07,67624.0,67623.0,4.93362913]
[1729845395857,0.22040187,67637.0,67636.0,0.443712]
[1729845396057,0.22040187,67637.0,67636.0,3.77232422]
[1729845396258,0.000824,67641.0,67640.0,0.268003]
[1729845396470,0.000824,67641.0,67640.0,2.97077722]
[1729845396834,0.000824,67641.0,67640.0,2.91677722]
[1729845397045,0.000824,67641.0,67640.0,2.65984722]
[1729845397886,0.10414773,67667.0,67640.0,2.65984722]
[1729845397887,0.07579093,67656.0,67648.0,0.25713373]
[1729845398167,0.07579093,67656.0,67655.0,0.14797]
[1729845398360,0.07579093,67656.0,67655.0,0.30309484]
[1729845398916,0.07579093,67656.0,67655.0,0.52849671]
[1729845399119,0.07579093,67656.0,67655.0,0.31548849]
[1729845399513,0.000823,67668.0,67660.0,0.147959]